[Event "Titled Tuesday Blitz June 20 Early 2023"]
[White "Berezin, Viktor"]
[Black "Vaglio Munoz, Jaime"]
[WhiteFideId "14107872"]
[BlackFideId "6500145"]
[WhiteElo "2310"]
[BlackElo "2199"]
[Result "1-0"]
[Round "2"]
[TimeControl "180+2"]
[Date "2023.06.20"]
[WhiteClock "0:00:08"]
[BlackClock "0:00:25"]
[Board "174"]

1. d4 {[%clk 0:03:00]}  c6 {[%clk 0:02:59]} 2. c4 {[%clk 0:02:55]}  b5 {[%clk 0:02:59]} 3. e3 {[%clk 0:02:54]}  bxc4 {[%clk 0:02:59]} 4. Bxc4 {[%clk 0:02:54]}  d5 {[%clk 0:02:52]} 5. Bd3 {[%clk 0:02:50]}  Ba6 {[%clk 0:02:52]} 6. Nc3 {[%clk 0:02:48]}  Qa5 {[%clk 0:02:50]} 7. Nf3 {[%clk 0:02:45]}  Bxd3 {[%clk 0:02:48]} 8. Qxd3 {[%clk 0:02:45]}  Qa6 {[%clk 0:02:49]} 9. Qxa6 {[%clk 0:02:35]}  Nxa6 {[%clk 0:02:50]} 10. Ke2 {[%clk 0:02:34]}  Rb8 {[%clk 0:02:44]} 11. b3 {[%clk 0:02:34]}  e6 {[%clk 0:02:43]} 12. Bd2 {[%clk 0:02:32]}  c5 {[%clk 0:02:42]} 13. dxc5 {[%clk 0:02:30]}  Nxc5 {[%clk 0:02:42]} 14. Rac1 {[%clk 0:02:27]}  Nf6 {[%clk 0:02:41]} 15. Nd4 {[%clk 0:02:12]}  Kd7 {[%clk 0:02:36]} 16. Rc2 {[%clk 0:02:02]}  Bd6 {[%clk 0:02:34]} 17. Ndb5 {[%clk 0:01:55]}  a6 {[%clk 0:02:22]} 18. Nxd6 {[%clk 0:01:54]}  Kxd6 {[%clk 0:02:23]} 19. Rhc1 {[%clk 0:01:54]}  Rb7 {[%clk 0:02:13]} 20. b4 {[%clk 0:01:21]}  Ncd7 {[%clk 0:02:06]} 21. f4 {[%clk 0:00:50]}  Nb6 {[%clk 0:02:00]} 22. b5 {[%clk 0:00:43]}  a5 {[%clk 0:01:55]} 23. a4 {[%clk 0:00:38]}  Nc4 {[%clk 0:01:46]} 24. Be1 {[%clk 0:00:38]}  h5 {[%clk 0:01:37]} 25. Nd1 {[%clk 0:00:36]}  h4 {[%clk 0:01:35]} 26. Nb2 {[%clk 0:00:30]}  Nxb2 {[%clk 0:01:30]} 27. Rxb2 {[%clk 0:00:31]}  Ra8 {[%clk 0:01:24]} 28. Rc6+ {[%clk 0:00:29]}  Kd7 {[%clk 0:01:21]} 29. Rbc2 {[%clk 0:00:29]}  Ne8 {[%clk 0:01:20]} 30. Bxh4 {[%clk 0:00:24]}  Nd6 {[%clk 0:01:19]} 31. Be1 {[%clk 0:00:21]}  f5 {[%clk 0:01:14]} 32. Kd3 {[%clk 0:00:21]}  Nc4 {[%clk 0:01:07]} 33. h3 {[%clk 0:00:18]}  Rg8 {[%clk 0:01:00]} 34. h4 {[%clk 0:00:17]}  g6 {[%clk 0:00:59]} 35. g3 {[%clk 0:00:17]}  e5 {[%clk 0:00:57]} 36. fxe5 {[%clk 0:00:14]}  Nxe5+ {[%clk 0:00:56]} 37. Ke2 {[%clk 0:00:14]}  Nc4 {[%clk 0:00:54]} 38. Bc3 {[%clk 0:00:12]}  Re8 {[%clk 0:00:53]} 39. Bd4 {[%clk 0:00:12]}  Nd6 {[%clk 0:00:42]} 40. b6 {[%clk 0:00:09]}  Ne4 {[%clk 0:00:40]} 41. Rxg6 {[%clk 0:00:08]}  Re7 {[%clk 0:00:35]} 42. Rgc6 {[%clk 0:00:08]}  Nxg3+ {[%clk 0:00:34]} 43. Kf3 {[%clk 0:00:09]}  Ne4 {[%clk 0:00:34]} 44. Rc7+ {[%clk 0:00:09]}  Rxc7 {[%clk 0:00:33]} 45. Rxc7+ {[%clk 0:00:09]}  Kd6 {[%clk 0:00:27]} 46. Rxe7 {[%clk 0:00:09]}  Nd2+ {[%clk 0:00:26]} 47. Ke2 {[%clk 0:00:09]}  Nc4 {[%clk 0:00:24]} 48. b7 {[%clk 0:00:08]}  Kxe7 {[%clk 0:00:23]} 49. b8=Q {[%clk 0:00:08]}  Nd6 {[%clk 0:00:23]} 50. Bc5 {[%clk 0:00:08]}  f4 {[%clk 0:00:23]} 51. Qxd6+ {[%clk 0:00:08]}  Kf7 {[%clk 0:00:24]} 52. Qxf4+ {[%clk 0:00:08]}  Kg6 {[%clk 0:00:25]} 53. Qg5+ {[%clk 0:00:08]}  Kf7 {[%clk 0:00:25]} 54. h5 {[%clk 0:00:08]}  d4 {[%clk 0:00:25]} 55. h6 {[%clk 0:00:08]}  d3+ {[%clk 0:00:26]} 56. Kd1 {[%clk 0:00:08]}  Ke6 {[%clk 0:00:27]} 57. h7 {[%clk 0:00:08]}  Kd7 {[%clk 0:00:27]} 58. h8=Q {[%clk 0:00:08]}  Kc6 {[%clk 0:00:28]} 59. Qhf6+ {[%clk 0:00:08]}  Kd7 {[%clk 0:00:25]} 60. Qd6+ {[%clk 0:00:07]}  Kc8 {[%clk 0:00:25]} 61. Qgd8+ {[%clk 0:00:07]}  Kb7 {[%clk 0:00:25]} 62. Q6b6# {[%clk 0:00:08]} 1-0


[Site "https://www.chess.com"]

[Event "Titled Tuesday Blitz June 20 Early 2023"]
[White "MunichMouse"]
[Black "Mathieu, Phileas"]
[BlackFideId "36048410"]
[WhiteElo "2307"]
[BlackElo "2240"]
[Result "0-1"]
[Round "2"]
[TimeControl "180+2"]
[Date "2023.06.20"]
[WhiteClock "0:00:20"]
[BlackClock "0:01:18"]
[Board "180"]

1. d4 {[%clk 0:03:00]}  Nf6 {[%clk 0:02:59]} 2. c4 {[%clk 0:03:00]}  c5 {[%clk 0:02:58]} 3. e3 {[%clk 0:02:59]}  g6 {[%clk 0:02:56]} 4. Nf3 {[%clk 0:03:00]}  Bg7 {[%clk 0:02:56]} 5. Nc3 {[%clk 0:03:00]}  cxd4 {[%clk 0:02:55]} 6. exd4 {[%clk 0:03:00]}  d5 {[%clk 0:02:56]} 7. Bg5 {[%clk 0:02:55]}  Be6 {[%clk 0:02:53]} 8. Qb3 {[%clk 0:02:52]}  dxc4 {[%clk 0:02:50]} 9. Bxc4 {[%clk 0:02:50]}  Bxc4 {[%clk 0:02:50]} 10. Qxc4 {[%clk 0:02:48]}  O-O {[%clk 0:02:50]} 11. O-O {[%clk 0:02:46]}  Nbd7 {[%clk 0:02:49]} 12. Rac1 {[%clk 0:02:40]}  h6 {[%clk 0:02:47]} 13. Bf4 {[%clk 0:02:32]}  Rc8 {[%clk 0:02:45]} 14. Qb3 {[%clk 0:02:32]}  Nb6 {[%clk 0:02:43]} 15. Be5 {[%clk 0:02:03]}  Nfd5 {[%clk 0:02:37]} 16. Bxg7 {[%clk 0:01:58]}  Kxg7 {[%clk 0:02:36]} 17. Rfd1 {[%clk 0:01:55]}  e6 {[%clk 0:02:35]} 18. Ne5 {[%clk 0:01:53]}  Qd6 {[%clk 0:01:59]} 19. Nb5 {[%clk 0:01:44]}  Qb8 {[%clk 0:01:58]} 20. a4 {[%clk 0:01:41]}  Rxc1 {[%clk 0:01:56]} 21. Rxc1 {[%clk 0:01:40]}  Rc8 {[%clk 0:01:57]} 22. Rc2 {[%clk 0:01:17]}  Rxc2 {[%clk 0:01:50]} 23. Qxc2 {[%clk 0:01:15]}  a6 {[%clk 0:01:51]} 24. a5 {[%clk 0:00:55]}  axb5 {[%clk 0:01:46]} 25. axb6 {[%clk 0:00:54]}  Nxb6 {[%clk 0:01:47]} 26. Qc5 {[%clk 0:00:54]}  Nd5 {[%clk 0:01:40]} 27. Qxb5 {[%clk 0:00:51]}  Qa7 {[%clk 0:01:40]} 28. Nf3 {[%clk 0:00:21]}  Qa1+ {[%clk 0:01:39]} 29. Qf1 {[%clk 0:00:21]}  Qxb2 {[%clk 0:01:39]} 30. h3 {[%clk 0:00:22]}  b5 {[%clk 0:01:39]} 31. Qe1 {[%clk 0:00:20]}  b4 {[%clk 0:01:25]} 32. Qe5+ {[%clk 0:00:20]}  Kh7 {[%clk 0:01:26]} 33. Qd6 {[%clk 0:00:19]}  Qc1+ {[%clk 0:01:18]} 34. Kh2 {[%clk 0:00:18]}  Qf4+ {[%clk 0:01:18]} 35. Qxf4 {[%clk 0:00:18]}  Nxf4 {[%clk 0:01:19]} 36. Nd2 {[%clk 0:00:19]}  Ne2 {[%clk 0:01:19]} 37. Nb3 {[%clk 0:00:18]}  Kg7 {[%clk 0:01:16]} 38. g3 {[%clk 0:00:19]}  Kf6 {[%clk 0:01:16]} 39. Kg2 {[%clk 0:00:20]}  e5 {[%clk 0:01:16]} 40. Kf3 {[%clk 0:00:20]}  Nxd4+ {[%clk 0:01:16]} 41. Nxd4 {[%clk 0:00:20]}  exd4 {[%clk 0:01:17]} 42. Ke4 {[%clk 0:00:21]}  b3 {[%clk 0:01:18]} 43. Kd3 {[%clk 0:00:20]}  Ke5 {[%clk 0:01:18]} 0-1


[Site "https://www.chess.com"]

[Event "Titled Tuesday Blitz June 20 Early 2023"]
[White "Bilan, Danila"]
[Black "Ardila, Oscar Humberto"]
[WhiteFideId "24161918"]
[BlackFideId "4404742"]
[WhiteElo "2146"]
[BlackElo "1912"]
[Result "1-0"]
[Round "2"]
[TimeControl "180+2"]
[Date "2023.06.20"]
[WhiteClock "0:00:06"]
[BlackClock "0:00:02"]
[Board "183"]

1. d4 {[%clk 0:03:00]}  Nf6 {[%clk 0:02:55]} 2. Nf3 {[%clk 0:03:00]}  g6 {[%clk 0:02:54]} 3. Bg5 {[%clk 0:02:58]}  Bg7 {[%clk 0:02:54]} 4. c3 {[%clk 0:02:58]}  h6 {[%clk 0:02:55]} 5. Bh4 {[%clk 0:02:58]}  d6 {[%clk 0:02:55]} 6. Nbd2 {[%clk 0:02:58]}  Nbd7 {[%clk 0:02:56]} 7. e4 {[%clk 0:02:58]}  O-O {[%clk 0:02:55]} 8. Bc4 {[%clk 0:02:57]}  Nb6 {[%clk 0:02:52]} 9. Bb3 {[%clk 0:02:57]}  c5 {[%clk 0:02:52]} 10. Qc2 {[%clk 0:02:50]}  Bd7 {[%clk 0:02:49]} 11. e5 {[%clk 0:02:37]}  Bf5 {[%clk 0:02:44]} 12. Qd1 {[%clk 0:01:57]}  dxe5 {[%clk 0:02:44]} 13. dxe5 {[%clk 0:01:44]}  Ng4 {[%clk 0:02:43]} 14. e6 {[%clk 0:01:40]}  fxe6 {[%clk 0:02:13]} 15. O-O {[%clk 0:01:30]}  g5 {[%clk 0:02:07]} 16. Bg3 {[%clk 0:01:28]}  Nd5 {[%clk 0:02:03]} 17. Re1 {[%clk 0:01:20]}  b5 {[%clk 0:02:00]} 18. Ne4 {[%clk 0:01:04]}  c4 {[%clk 0:01:57]} 19. Bc2 {[%clk 0:01:04]}  Qb6 {[%clk 0:01:51]} 20. h3 {[%clk 0:00:56]}  Ngf6 {[%clk 0:01:49]} 21. Nd4 {[%clk 0:00:54]}  Nxe4 {[%clk 0:01:23]} 22. Bxe4 {[%clk 0:00:52]}  Bxd4 {[%clk 0:01:20]} 23. cxd4 {[%clk 0:00:49]}  Rad8 {[%clk 0:01:06]} 24. Be5 {[%clk 0:00:47]}  Nf6 {[%clk 0:01:00]} 25. Bc2 {[%clk 0:00:31]}  b4 {[%clk 0:00:57]} 26. Bxf5 {[%clk 0:00:28]}  exf5 {[%clk 0:00:57]} 27. Qc2 {[%clk 0:00:29]}  Ne4 {[%clk 0:00:43]} 28. Qxc4+ {[%clk 0:00:26]}  Kh7 {[%clk 0:00:41]} 29. Rac1 {[%clk 0:00:24]}  Rc8 {[%clk 0:00:34]} 30. Qxc8 {[%clk 0:00:20]}  Rxc8 {[%clk 0:00:34]} 31. Rxc8 {[%clk 0:00:20]}  Qa6 {[%clk 0:00:28]} 32. Rec1 {[%clk 0:00:20]}  Qxa2 {[%clk 0:00:27]} 33. R8c2 {[%clk 0:00:10]}  a5 {[%clk 0:00:20]} 34. f3 {[%clk 0:00:11]}  Nf6 {[%clk 0:00:16]} 35. Rc7 {[%clk 0:00:07]}  Nd5 {[%clk 0:00:16]} 36. Rd7 {[%clk 0:00:06]}  Kg6 {[%clk 0:00:14]} 37. Rc5 {[%clk 0:00:06]}  e6 {[%clk 0:00:13]} 38. Rd6 {[%clk 0:00:06]}  Qb1+ {[%clk 0:00:13]} 39. Kh2 {[%clk 0:00:05]}  Ne3 {[%clk 0:00:13]} 40. Rxe6+ {[%clk 0:00:05]}  Kh5 {[%clk 0:00:13]} 41. Bg7 {[%clk 0:00:06]}  Nf1+ {[%clk 0:00:09]} 42. Kg1 {[%clk 0:00:06]}  Ng3+ {[%clk 0:00:03]} 43. Kf2 {[%clk 0:00:06]}  Qf1+ {[%clk 0:00:03]} 44. Kxg3 {[%clk 0:00:06]}  f4+ {[%clk 0:00:04]} 45. Kh2 {[%clk 0:00:06]}  Qf2 {[%clk 0:00:02]} 46. Rxh6# {[%clk 0:00:06]} 1-0


[Site "https://www.chess.com"]

[Event "Titled Tuesday Blitz June 20 Early 2023"]
[White "Sala, Giulia"]
[Black "Goffredo_Fofi"]
[WhiteFideId "2840451"]
[WhiteElo "1769"]
[BlackElo "2510"]
[Result "0-1"]
[Round "2"]
[TimeControl "180+2"]
[Date "2023.06.20"]
[WhiteClock "0:00:00"]
[BlackClock "0:00:12"]
[Board "185"]

1. e4 {[%clk 0:03:00]}  Nf6 {[%clk 0:02:59]} 2. Nc3 {[%clk 0:02:59]}  e5 {[%clk 0:02:59]} 3. Bc4 {[%clk 0:02:52]}  Nxe4 {[%clk 0:02:59]} 4. Bxf7+ {[%clk 0:02:47]}  Kxf7 {[%clk 0:02:58]} 5. Nxe4 {[%clk 0:02:45]}  d5 {[%clk 0:02:38]} 6. Nc3 {[%clk 0:02:40]}  c6 {[%clk 0:01:30]} 7. Qh5+ {[%clk 0:02:30]}  g6 {[%clk 0:01:30]} 8. Qxe5 {[%clk 0:02:29]}  Bd6 {[%clk 0:01:29]} 9. Qd4 {[%clk 0:02:19]}  Re8+ {[%clk 0:01:28]} 10. Nge2 {[%clk 0:02:16]}  Nd7 {[%clk 0:01:14]} 11. O-O {[%clk 0:02:14]}  Nf6 {[%clk 0:01:00]} 12. d3 {[%clk 0:02:11]}  Nh5 {[%clk 0:00:40]} 13. h3 {[%clk 0:02:00]}  Be6 {[%clk 0:00:36]} 14. Nf4 {[%clk 0:01:55]}  Nxf4 {[%clk 0:00:24]} 15. Bxf4 {[%clk 0:01:55]}  c5 {[%clk 0:00:24]} 16. Qa4 {[%clk 0:01:43]}  Bd7 {[%clk 0:00:24]} 17. Nb5 {[%clk 0:01:41]}  Bxb5 {[%clk 0:00:24]} 18. Qxb5 {[%clk 0:01:37]}  Bxf4 {[%clk 0:00:24]} 19. Qxb7+ {[%clk 0:01:34]}  Kg8 {[%clk 0:00:24]} 20. Rae1 {[%clk 0:01:30]}  Qd6 {[%clk 0:00:20]} 21. Qb5 {[%clk 0:01:09]}  Be5 {[%clk 0:00:16]} 22. c3 {[%clk 0:00:58]}  Rab8 {[%clk 0:00:15]} 23. Qa4 {[%clk 0:00:04]}  Rf8 {[%clk 0:00:14]} 24. Qc2 {[%clk 0:00:03]}  Qf6 {[%clk 0:00:12]} 25. Qe2 {[%clk 0:00:02]}  Rbe8 {[%clk 0:00:11]} 26. Qd2 {[%clk 0:00:01]}  Bc7 {[%clk 0:00:08]} 27. Qc2 {[%clk 0:00:02]}  Qf4 {[%clk 0:00:08]} 28. g3 {[%clk 0:00:02]}  Qf3 {[%clk 0:00:08]} 29. Rxe8 {[%clk 0:00:03]}  Rxe8 {[%clk 0:00:08]} 30. Qd1 {[%clk 0:00:03]}  Qxd1 {[%clk 0:00:06]} 31. Rxd1 {[%clk 0:00:04]}  Re2 {[%clk 0:00:06]} 32. Rb1 {[%clk 0:00:04]}  Bd6 {[%clk 0:00:06]} 33. a4 {[%clk 0:00:05]}  a5 {[%clk 0:00:06]} 34. b3 {[%clk 0:00:05]}  Kf7 {[%clk 0:00:06]} 35. c4 {[%clk 0:00:06]}  d4 {[%clk 0:00:06]} 36. Kf1 {[%clk 0:00:05]}  Rd2 {[%clk 0:00:06]} 37. Re1 {[%clk 0:00:05]}  Rxd3 {[%clk 0:00:06]} 38. Rb1 {[%clk 0:00:06]}  Rc3 {[%clk 0:00:06]} 39. Rb2 {[%clk 0:00:05]}  d3 {[%clk 0:00:06]} 40. Ke1 {[%clk 0:00:06]}  Be5 {[%clk 0:00:06]} 41. Kd2 {[%clk 0:00:06]}  Bd4 {[%clk 0:00:04]} 42. Rb1 {[%clk 0:00:06]}  Kf6 {[%clk 0:00:04]} 43. f3 {[%clk 0:00:06]}  Rc2+ {[%clk 0:00:04]} 44. Kxd3 {[%clk 0:00:07]}  Rf2 {[%clk 0:00:04]} 45. Ke4 {[%clk 0:00:07]}  Rg2 {[%clk 0:00:03]} 46. g4 {[%clk 0:00:07]}  Rh2 {[%clk 0:00:04]} 47. f4 {[%clk 0:00:07]}  Rxh3 {[%clk 0:00:04]} 48. g5+ {[%clk 0:00:07]}  Kf7 {[%clk 0:00:04]} 49. Kd5 {[%clk 0:00:08]}  Rf3 {[%clk 0:00:04]} 50. Ke4 {[%clk 0:00:08]}  Re3+ {[%clk 0:00:05]} 51. Kd5 {[%clk 0:00:09]}  Re2 {[%clk 0:00:06]} 52. Kc6 {[%clk 0:00:09]}  Re6+ {[%clk 0:00:06]} 53. Kb5 {[%clk 0:00:10]}  Bc3 {[%clk 0:00:04]} 54. Kxc5 {[%clk 0:00:10]}  Bb4+ {[%clk 0:00:05]} 55. Kd5 {[%clk 0:00:11]}  Rd6+ {[%clk 0:00:05]} 56. Ke5 {[%clk 0:00:12]}  Re6+ {[%clk 0:00:05]} 57. Kd5 {[%clk 0:00:12]}  Re3 {[%clk 0:00:06]} 58. c5 {[%clk 0:00:13]}  Ke7 {[%clk 0:00:06]} 59. Kc4 {[%clk 0:00:13]}  Ke6 {[%clk 0:00:06]} 60. Kb5 {[%clk 0:00:14]}  Kd7 {[%clk 0:00:06]} 61. c6+ {[%clk 0:00:14]}  Kc7 {[%clk 0:00:06]} 62. Rd1 {[%clk 0:00:15]}  Re7 {[%clk 0:00:06]} 63. Rd4 {[%clk 0:00:15]}  Rf7 {[%clk 0:00:06]} 64. Rd5 {[%clk 0:00:16]}  Rf5 {[%clk 0:00:06]} 65. Rxf5 {[%clk 0:00:16]}  gxf5 {[%clk 0:00:07]} 66. Kc4 {[%clk 0:00:16]}  Bd2 {[%clk 0:00:07]} 67. Kd5 {[%clk 0:00:16]}  Bxf4 {[%clk 0:00:07]} 68. Ke6 {[%clk 0:00:17]}  Bxg5 {[%clk 0:00:07]} 69. Kxf5 {[%clk 0:00:18]}  Bd2 {[%clk 0:00:07]} 70. Ke4 {[%clk 0:00:18]}  Kxc6 {[%clk 0:00:07]} 71. Kd3 {[%clk 0:00:19]}  Bb4 {[%clk 0:00:07]} 72. Kc4 {[%clk 0:00:20]}  h5 {[%clk 0:00:07]} 73. Kd3 {[%clk 0:00:21]}  Kd5 {[%clk 0:00:07]} 74. Ke3 {[%clk 0:00:21]}  h4 {[%clk 0:00:07]} 75. Kf3 {[%clk 0:00:21]}  Kd4 {[%clk 0:00:08]} 76. Kg4 {[%clk 0:00:22]}  Kc3 {[%clk 0:00:09]} 77. Kxh4 {[%clk 0:00:23]}  Kxb3 {[%clk 0:00:10]} 78. Kg3 {[%clk 0:00:23]}  Kxa4 {[%clk 0:00:10]} 79. Kf3 {[%clk 0:00:24]}  Kb3 {[%clk 0:00:11]} 80. Ke2 {[%clk 0:00:00]}  Kb2 {[%clk 0:00:12]} 0-1


[Site "https://www.chess.com"]

[Event "Titled Tuesday Blitz June 20 Early 2023"]
[White "Modric, Nesa"]
[Black "Brunner, Nicolas"]
[WhiteFideId "922579"]
[BlackFideId "620246"]
[WhiteElo "2167"]
[BlackElo "2319"]
[Result "0-1"]
[Round "2"]
[TimeControl "180+2"]
[Date "2023.06.20"]
[WhiteClock "0:00:00"]
[BlackClock "0:01:45"]
[Board "187"]

1. e4 {[%clk 0:03:00]}  e5 {[%clk 0:02:58]} 2. Nf3 {[%clk 0:03:00]}  Nf6 {[%clk 0:02:57]} 3. Bc4 {[%clk 0:02:58]}  Nxe4 {[%clk 0:02:54]} 4. Nc3 {[%clk 0:02:57]}  Nf6 {[%clk 0:02:49]} 5. Nxe5 {[%clk 0:02:51]}  d5 {[%clk 0:02:49]} 6. Bb3 {[%clk 0:02:42]}  Bd6 {[%clk 0:02:48]} 7. d4 {[%clk 0:02:41]}  c6 {[%clk 0:02:47]} 8. O-O {[%clk 0:02:39]}  O-O {[%clk 0:02:46]} 9. Bg5 {[%clk 0:02:36]}  Nbd7 {[%clk 0:02:40]} 10. Nxd7 {[%clk 0:02:25]}  Bxd7 {[%clk 0:02:40]} 11. Qf3 {[%clk 0:01:25]}  h6 {[%clk 0:02:36]} 12. Bxf6 {[%clk 0:01:22]}  Qxf6 {[%clk 0:02:36]} 13. Qxf6 {[%clk 0:01:22]}  gxf6 {[%clk 0:02:36]} 14. Rfe1 {[%clk 0:01:18]}  Rfe8 {[%clk 0:02:35]} 15. Ne2 {[%clk 0:01:14]}  b5 {[%clk 0:02:28]} 16. Ng3 {[%clk 0:01:07]}  Kg7 {[%clk 0:02:10]} 17. Kf1 {[%clk 0:00:58]}  f5 {[%clk 0:02:10]} 18. Rxe8 {[%clk 0:00:46]}  Rxe8 {[%clk 0:02:09]} 19. h3 {[%clk 0:00:40]}  f4 {[%clk 0:02:07]} 20. Ne2 {[%clk 0:00:14]}  f3 {[%clk 0:02:06]} 21. Ng3 {[%clk 0:00:10]}  fxg2+ {[%clk 0:02:05]} 22. Kxg2 {[%clk 0:00:10]}  f5 {[%clk 0:02:01]} 23. a4 {[%clk 0:00:05]}  b4 {[%clk 0:01:58]} 24. Nf1 {[%clk 0:00:05]}  f4 {[%clk 0:01:56]} 25. Nd2 {[%clk 0:00:03]}  Kf6 {[%clk 0:01:55]} 26. Nf3 {[%clk 0:00:02]}  Rg8+ {[%clk 0:01:53]} 27. Kh2 {[%clk 0:00:02]}  Bf5 {[%clk 0:01:49]} 28. c3 {[%clk 0:00:01]}  bxc3 {[%clk 0:01:45]} 29. bxc3 {[%clk 0:00:00]}  Rb8 {[%clk 0:01:45]} 0-1


[Site "https://www.chess.com"]

[Event "Titled Tuesday Blitz June 20 Early 2023"]
[White "Cesar Maestre, Bernardo"]
[Black "Goltseva, Ekaterina"]
[WhiteFideId "24542547"]
[BlackFideId "24173770"]
[WhiteElo "2271"]
[BlackElo "2114"]
[Result "1-0"]
[Round "2"]
[TimeControl "180+2"]
[Date "2023.06.20"]
[WhiteClock "0:00:19"]
[BlackClock "0:00:09"]
[Board "189"]

1. e4 {[%clk 0:03:00]}  c6 {[%clk 0:02:55]} 2. d4 {[%clk 0:02:59]}  d5 {[%clk 0:02:46]} 3. e5 {[%clk 0:02:56]}  c5 {[%clk 0:02:42]} 4. dxc5 {[%clk 0:02:52]}  Nc6 {[%clk 0:02:36]} 5. f4 {[%clk 0:02:52]}  Bf5 {[%clk 0:02:34]} 6. Nf3 {[%clk 0:02:49]}  e6 {[%clk 0:02:34]} 7. Be3 {[%clk 0:02:46]}  Rc8 {[%clk 0:02:03]} 8. c3 {[%clk 0:02:44]}  a5 {[%clk 0:01:57]} 9. a4 {[%clk 0:02:40]}  f6 {[%clk 0:01:43]} 10. Bb5 {[%clk 0:02:37]}  Ne7 {[%clk 0:01:38]} 11. exf6 {[%clk 0:02:30]}  gxf6 {[%clk 0:01:38]} 12. Nd4 {[%clk 0:02:30]}  Bg7 {[%clk 0:01:24]} 13. g4 {[%clk 0:02:10]}  Be4 {[%clk 0:01:22]} 14. Nxe6 {[%clk 0:02:09]}  Qd7 {[%clk 0:01:19]} 15. Nxg7+ {[%clk 0:02:07]}  Kf7 {[%clk 0:01:20]} 16. O-O {[%clk 0:02:05]}  Kxg7 {[%clk 0:01:18]} 17. Nd2 {[%clk 0:02:03]}  Bg6 {[%clk 0:01:10]} 18. f5 {[%clk 0:02:01]}  Bf7 {[%clk 0:01:03]} 19. Nf3 {[%clk 0:01:44]}  Rhg8 {[%clk 0:01:02]} 20. Bd4 {[%clk 0:01:40]}  Kf8 {[%clk 0:00:53]} 21. Kh1 {[%clk 0:00:41]}  Rxg4 {[%clk 0:00:50]} 22. Bxf6 {[%clk 0:00:39]}  Nxf5 {[%clk 0:00:46]} 23. Ne5 {[%clk 0:00:39]}  Qe6 {[%clk 0:00:29]} 24. Nxg4 {[%clk 0:00:33]}  h5 {[%clk 0:00:28]} 25. Qf3 {[%clk 0:00:24]}  Bg6 {[%clk 0:00:22]} 26. Rae1 {[%clk 0:00:17]}  Qf7 {[%clk 0:00:20]} 27. Ne5 {[%clk 0:00:14]}  Nxe5 {[%clk 0:00:16]} 28. Bxe5 {[%clk 0:00:15]}  Kg8 {[%clk 0:00:14]} 29. Bd3 {[%clk 0:00:15]}  Rf8 {[%clk 0:00:14]} 30. Bxf5 {[%clk 0:00:14]}  Bxf5 {[%clk 0:00:15]} 31. Bd6 {[%clk 0:00:14]}  Be4 {[%clk 0:00:14]} 32. Rxe4 {[%clk 0:00:14]}  Qxf3+ {[%clk 0:00:08]} 33. Rxf3 {[%clk 0:00:14]}  Rxf3 {[%clk 0:00:08]} 34. Rd4 {[%clk 0:00:13]}  Rf2 {[%clk 0:00:07]} 35. b4 {[%clk 0:00:13]}  axb4 {[%clk 0:00:04]} 36. cxb4 {[%clk 0:00:14]}  Rb2 {[%clk 0:00:04]} 37. b5 {[%clk 0:00:14]}  Kf7 {[%clk 0:00:03]} 38. Rxd5 {[%clk 0:00:14]}  Ra2 {[%clk 0:00:04]} 39. c6 {[%clk 0:00:14]}  Ra1+ {[%clk 0:00:04]} 40. Kg2 {[%clk 0:00:14]}  bxc6 {[%clk 0:00:05]} 41. bxc6 {[%clk 0:00:14]}  Rxa4 {[%clk 0:00:06]} 42. c7 {[%clk 0:00:14]}  Ra8 {[%clk 0:00:06]} 43. Rc5 {[%clk 0:00:14]}  Rc8 {[%clk 0:00:06]} 44. Bg3 {[%clk 0:00:14]}  Ke6 {[%clk 0:00:06]} 45. Rxh5 {[%clk 0:00:15]}  Kd7 {[%clk 0:00:06]} 46. Rb5 {[%clk 0:00:15]}  Kc6 {[%clk 0:00:04]} 47. Rb8 {[%clk 0:00:15]}  Kd7 {[%clk 0:00:04]} 48. Rxc8 {[%clk 0:00:15]}  Kxc8 {[%clk 0:00:05]} 49. h4 {[%clk 0:00:16]}  Kd7 {[%clk 0:00:05]} 50. h5 {[%clk 0:00:16]}  Kc8 {[%clk 0:00:06]} 51. h6 {[%clk 0:00:17]}  Kd7 {[%clk 0:00:07]} 52. h7 {[%clk 0:00:18]}  Kc8 {[%clk 0:00:08]} 53. h8=Q+ {[%clk 0:00:18]}  Kd7 {[%clk 0:00:09]} 54. Qd8+ {[%clk 0:00:19]}  Kc6 {[%clk 0:00:09]} 55. c8=Q+ {[%clk 0:00:19]}  Kb5 {[%clk 0:00:06]} 56. Qd5+ {[%clk 0:00:19]}  Ka4 {[%clk 0:00:07]} 57. Qcc4+ {[%clk 0:00:19]}  Ka3 {[%clk 0:00:07]} 58. Qdd3+ {[%clk 0:00:19]}  Kb2 {[%clk 0:00:08]} 59. Qcc2+ {[%clk 0:00:19]}  Ka1 {[%clk 0:00:09]} 60. Qdd1# {[%clk 0:00:19]} 1-0


[Site "https://www.chess.com"]

[Event "Titled Tuesday Blitz June 20 Early 2023"]
[White "Czerw, Dawid"]
[Black "Brueckner, Thomas"]
[WhiteFideId "1145746"]
[BlackFideId "4600452"]
[WhiteElo "2144"]
[BlackElo "2319"]
[Result "0-1"]
[Round "2"]
[TimeControl "180+2"]
[Date "2023.06.20"]
[WhiteClock "0:00:06"]
[BlackClock "0:00:28"]
[Board "191"]

1. e4 {[%clk 0:03:00]}  c6 {[%clk 0:02:59]} 2. Nc3 {[%clk 0:03:00]}  d5 {[%clk 0:02:58]} 3. Qf3 {[%clk 0:02:58]}  d4 {[%clk 0:02:50]} 4. Bc4 {[%clk 0:02:56]}  Nf6 {[%clk 0:02:44]} 5. Nce2 {[%clk 0:02:55]}  Nbd7 {[%clk 0:02:41]} 6. d3 {[%clk 0:01:54]}  Ne5 {[%clk 0:02:39]} 7. Qg3 {[%clk 0:01:54]}  Nxc4 {[%clk 0:02:35]} 8. dxc4 {[%clk 0:01:54]}  Nxe4 {[%clk 0:02:32]} 9. Qf4 {[%clk 0:01:51]}  Qa5+ {[%clk 0:02:23]} 10. Kf1 {[%clk 0:01:43]}  Nf6 {[%clk 0:02:16]} 11. Nxd4 {[%clk 0:01:28]}  e5 {[%clk 0:02:04]} 12. Qe3 {[%clk 0:01:27]}  Be7 {[%clk 0:01:59]} 13. Nb3 {[%clk 0:01:24]}  Qc7 {[%clk 0:01:57]} 14. Nf3 {[%clk 0:01:24]}  Ng4 {[%clk 0:01:52]} 15. Qe2 {[%clk 0:01:24]}  O-O {[%clk 0:01:37]} 16. h3 {[%clk 0:01:23]}  Nf6 {[%clk 0:01:37]} 17. Nxe5 {[%clk 0:01:20]}  Bd6 {[%clk 0:01:35]} 18. Nd3 {[%clk 0:01:16]}  Bf5 {[%clk 0:01:32]} 19. Be3 {[%clk 0:01:05]}  Rfe8 {[%clk 0:01:30]} 20. c5 {[%clk 0:00:47]}  Bf8 {[%clk 0:01:26]} 21. Qf3 {[%clk 0:00:40]}  Be4 {[%clk 0:01:19]} 22. Qf4 {[%clk 0:00:38]}  Qd7 {[%clk 0:01:17]} 23. Rd1 {[%clk 0:00:34]}  Nd5 {[%clk 0:01:17]} 24. Qg3 {[%clk 0:00:30]}  f5 {[%clk 0:00:55]} 25. Kg1 {[%clk 0:00:20]}  Qe6 {[%clk 0:00:45]} 26. Kh2 {[%clk 0:00:19]}  Rad8 {[%clk 0:00:41]} 27. Rhe1 {[%clk 0:00:19]}  Qf6 {[%clk 0:00:39]} 28. c3 {[%clk 0:00:18]}  Bxd3 {[%clk 0:00:35]} 29. Rxd3 {[%clk 0:00:18]}  f4 {[%clk 0:00:36]} 30. Qg4 {[%clk 0:00:10]}  fxe3 {[%clk 0:00:35]} 31. fxe3 {[%clk 0:00:10]}  Qe5+ {[%clk 0:00:34]} 32. Kh1 {[%clk 0:00:10]}  Nf6 {[%clk 0:00:31]} 33. Qf3 {[%clk 0:00:09]}  Rxd3 {[%clk 0:00:29]} 34. Qf1 {[%clk 0:00:07]}  Rxe3 {[%clk 0:00:29]} 35. Rd1 {[%clk 0:00:08]}  Re1 {[%clk 0:00:28]} 36. Rxe1 {[%clk 0:00:06]}  Qxe1 {[%clk 0:00:28]} 0-1


[Site "https://www.chess.com"]